[Event "Estonian Women's Chess Championship 2021"]
[Site "Tallinn, Paul Keres Chess House, Estonia"]
[Date "2021.12.11"]
[Round "1.1"]
[White "Levchenko, Marina"]
[Black "Barkasheva, Sofia"]
[Result "1-0"]
[TimeControl "90 minutes for first 40 moves and 15 min. for the rest of the game with 30 sec."]
[WhiteFideId "4508548"]
[BlackFideId "4510615"]
[WhiteElo "1367"]
[BlackElo "1505"]

1. c4 {[%clk 01:30:57]} {[%emt 00:00:02]} g6 {[%clk 01:30:52]} {[%emt
00:00:09]} 2. d4 {[%clk 01:31:06]} {[%emt 00:00:22]} Bg7 {[%clk 01:31:10]}
{[%emt 00:00:11]} 3. Nc3 {[%clk 01:31:21]} {[%emt 00:00:15]} d6 {[%clk
01:31:28]} {[%emt 00:00:12]} 4. e4 {[%clk 01:31:22]} {[%emt 00:00:30]} Nf6
{[%clk 01:31:46]} {[%emt 00:00:12]} 5. Nf3 {[%clk 01:31:00]} {[%emt 00:00:51]}
Bg4 {[%clk 01:31:52]} {[%emt 00:00:23]} 6. Be2 {[%clk 01:30:55]} {[%emt
00:00:35]} Nfd7 {[%clk 01:32:03]} {[%emt 00:00:19]} 7. Be3 {[%clk 01:29:14]}
{[%emt 00:02:11]} O-O {[%clk 01:32:23]} {[%emt 00:00:10]} 8. O-O {[%clk
01:27:23]} {[%emt 00:02:21]} Nc6 {[%clk 01:32:34]} {[%emt 00:00:19]} 9. a3
{[%clk 01:25:13]} {[%emt 00:02:41]} Bxf3 {[%clk 01:28:05]} {[%emt 00:04:58]} 10.
Bxf3 {[%clk 01:25:23]} {[%emt 00:00:20]} e5 {[%clk 01:27:57]} {[%emt 00:00:38]}
11. d5 {[%clk 01:19:03]} {[%emt 00:06:50]} Nd4 {[%clk 01:27:28]} {[%emt
00:00:59]} 12. Be2 {[%clk 01:17:21]} {[%emt 00:02:13]} a5 {[%clk 01:24:26]}
{[%emt 00:03:32]} 13. Rb1 {[%clk 01:05:35]} {[%emt 00:12:16]} Re8 {[%clk
01:09:53]} {[%emt 00:15:02]} 14. f3 {[%clk 00:58:32]} {[%emt 00:07:34]} c6
{[%clk 00:46:42]} {[%emt 00:23:40]} 15. b3 {[%clk 00:43:41]} {[%emt 00:15:21]}
f5 {[%clk 00:37:15]} {[%emt 00:09:57]} 16. Qd2 {[%clk 00:37:43]} {[%emt
00:06:27]} f4 {[%clk 00:30:47]} {[%emt 00:06:58]} 17. Bf2 {[%clk 00:37:02]}
{[%emt 00:01:11]} Nc5 {[%clk 00:27:00]} {[%emt 00:04:17]} 18. Bd1 {[%clk
00:34:13]} {[%emt 00:03:20]} g5 {[%clk 00:17:48]} {[%emt 00:09:41]} 19. Ne2
{[%clk 00:30:35]} {[%emt 00:04:08]} Qf6 {[%clk 00:16:10]} {[%emt 00:02:08]} 20.
Nxd4 {[%clk 00:23:22]} {[%emt 00:07:44]} exd4 {[%clk 00:16:23]} {[%emt
00:00:17]} 21. Bc2 {[%clk 00:23:23]} {[%emt 00:00:29]} Nd7 {[%clk 00:14:18]}
{[%emt 00:02:34]} 22. Rfd1 {[%clk 00:20:47]} {[%emt 00:03:07]} c5 {[%clk
00:13:52]} {[%emt 00:00:56]} 23. b4 {[%clk 00:20:01]} {[%emt 00:01:16]} axb4
{[%clk 00:12:23]} {[%emt 00:01:59]} 24. axb4 {[%clk 00:20:13]} {[%emt
00:00:19]} Reb8 {[%clk 00:07:26]} {[%emt 00:05:26]} 25. bxc5 {[%clk 00:16:12]}
{[%emt 00:04:31]} dxc5 {[%clk 00:07:30]} {[%emt 00:00:26]} 26. Rb5 {[%clk
00:13:54]} {[%emt 00:02:48]} b6 {[%clk 00:06:39]} {[%emt 00:01:21]} 27. Bd3
{[%clk 00:12:47]} {[%emt 00:01:37]} Ne5 {[%clk 00:06:25]} {[%emt 00:00:44]} 28.
Rdb1 {[%clk 00:12:13]} {[%emt 00:01:05]} g4 {[%clk 00:06:12]} {[%emt 00:00:41]}
29. fxg4 {[%clk 00:08:19]} {[%emt 00:04:25]} Bh6 {[%clk 00:05:15]} {[%emt
00:01:26]} 30. Qe2 {[%clk 00:05:06]} {[%emt 00:03:44]} f3 {[%clk 00:04:49]}
{[%emt 00:00:55]} 31. gxf3 {[%clk 00:05:23]} {[%emt 00:00:13]} Ra3 {[%clk
00:04:26]} {[%emt 00:00:53]} 32. R5b3 {[%clk 00:04:59]} {[%emt 00:00:55]} Rxb3
{[%clk 00:04:26]} {[%emt 00:00:30]} 33. Rxb3 {[%clk 00:05:26]} {[%emt
00:00:03]} Nxf3+ {[%clk 00:04:40]} {[%emt 00:00:16]} 34. Kg2 {[%clk 00:05:17]}
{[%emt 00:00:39]} Rf8 {[%clk 00:04:47]} {[%emt 00:00:21]} 35. Bg3 {[%clk
00:04:04]} {[%emt 00:01:44]} Nd2 {[%clk 00:02:27]} {[%emt 00:02:50]} 36. Rb2
{[%clk 00:03:32]} {[%emt 00:01:02]} Nf3 {[%clk 00:02:23]} {[%emt 00:00:34]} 37.
e5 {[%clk 00:03:01]} {[%emt 00:01:02]} Qe7 {[%clk 00:01:30]} {[%emt 00:01:22]}
38. Rxb6 {[%clk 00:02:44]} {[%emt 00:00:48]} Be3 {[%clk 00:01:33]} {[%emt
00:00:27]} 39. e6 {[%clk 00:01:52]} {[%emt 00:01:22]} Nh4+ {[%clk 00:01:35]}
{[%emt 00:00:27]} 40. Kh1 {[%clk 00:16:45]} {[%emt 00:00:38]} Qa7 {[%clk
00:16:37]} {[%emt 00:00:28]} 41. Rb1 {[%clk 00:14:22]} {[%emt 00:02:53]} Nf3
{[%clk 00:13:15]} {[%emt 00:03:51]} 42. Rf1 {[%clk 00:13:15]} {[%emt 00:01:38]}
Nd2 {[%clk 00:12:55]} {[%emt 00:00:50]} 43. Rxf8+ {[%clk 00:11:24]} {[%emt
00:02:22]} Kxf8 {[%clk 00:13:23]} 44. Bf2 {[%clk 00:10:08]} {[%emt 00:01:46]}
Bf4 {[%clk 00:12:28]} {[%emt 00:01:24]} 45. Be1 {[%clk 00:08:41]} {[%emt
00:01:58]} Nb3 {[%clk 00:08:10]} {[%emt 00:04:47]} 46. Qf3 {[%clk 00:08:12]}
{[%emt 00:01:00]} Qb8 {[%clk 00:08:27]} {[%emt 00:00:12]} 47. Bg3 {[%clk
00:08:09]} {[%emt 00:00:34]} Ke7 {[%clk 00:08:40]} {[%emt 00:00:16]} 48. Bxf4
{[%clk 00:07:59]} {[%emt 00:00:40]} Qg8 {[%clk 00:08:37]} {[%emt 00:00:32]} 49.
d6+ {[%emt 00:02:58]} 1-0

[Event "Estonian Women's Chess Championship 2021"]
[Site "Tallinn, Paul Keres Chess House, Estonia"]
[Date "2021.12.11"]
[Round "1.2"]
[White "Blokhin, Sofia"]
[Black "Shadrina, Eva"]
[Result "1-0"]
[TimeControl "90 minutes for first 40 moves and 15 min. for the rest of the game with 30 sec."]
[WhiteTitle "WCM"]
[WhiteFideId "4508190"]
[BlackFideId "4510623"]
[WhiteElo "2032"]
[BlackElo "1472"]

1. e4 {[%clk 01:30:58]} {[%emt 01:47:40]} c5 {[%clk 01:30:57]} {[%emt
00:00:21]} 2. Nf3 {[%clk 01:31:21]} {[%emt 00:00:07]} Nc6 {[%clk 01:31:11]}
{[%emt 00:00:16]} 3. d4 {[%clk 01:31:43]} {[%emt 00:00:08]} cxd4 {[%clk
01:31:25]} {[%emt 00:00:17]} 4. Nxd4 {[%clk 01:32:06]} {[%emt 00:00:07]} Nf6
{[%clk 01:31:41]} {[%emt 00:00:14]} 5. Nc3 {[%clk 01:32:15]} {[%emt 00:00:21]}
e5 {[%clk 01:31:59]} {[%emt 00:00:13]} 6. Ndb5 {[%clk 01:32:25]} {[%emt
00:00:19]} d6 {[%clk 01:32:19]} {[%emt 00:00:11]} 7. Nd5 {[%clk 01:32:31]}
{[%emt 00:00:23]} Nxd5 {[%clk 01:32:36]} {[%emt 00:00:14]} 8. exd5 {[%clk
01:32:49]} {[%emt 00:00:12]} Nb8 {[%clk 01:32:47]} {[%emt 00:00:19]} 9. c4
{[%clk 01:32:50]} {[%emt 00:00:28]} Be7 {[%clk 01:32:25]} {[%emt 00:00:53]} 10.
Bd3 {[%clk 01:31:29]} {[%emt 00:01:51]} O-O {[%clk 01:30:52]} {[%emt 00:02:02]}
11. O-O {[%clk 01:30:27]} {[%emt 00:01:32]} a6 {[%clk 01:30:24]} {[%emt
00:00:58]} 12. Nc3 {[%clk 01:30:44]} {[%emt 00:00:12]} f5 {[%clk 01:29:43]}
{[%emt 00:01:11]} 13. f3 {[%clk 01:29:28]} {[%emt 00:01:47]} Nd7 {[%clk
01:26:47]} {[%emt 00:03:26]} 14. Be3 {[%clk 01:28:25]} {[%emt 00:01:32]} Bg5
{[%clk 01:26:00]} {[%emt 00:01:18]} 15. Bf2 {[%clk 01:25:29]} {[%emt 00:03:26]}
Qf6 {[%clk 01:21:29]} {[%emt 00:05:01]} 16. Qc2 {[%clk 01:22:41]} {[%emt
00:03:18]} Nc5 {[%clk 01:16:39]} {[%emt 00:05:21]} 17. Be2 {[%clk 01:09:34]}
{[%emt 00:13:36]} b6 {[%clk 00:44:31]} {[%emt 00:32:38]} 18. b4 {[%clk
01:07:02]} {[%emt 00:03:02]} Nd7 {[%clk 00:44:30]} {[%emt 00:00:30]} 19. g3
{[%clk 01:02:42]} {[%emt 00:04:50]} Qg6 {[%clk 00:34:28]} {[%emt 00:10:32]} 20.
Bd3 {[%clk 00:56:53]} {[%emt 00:06:19]} h5 {[%clk 00:27:21]} {[%emt 00:07:38]}
21. Kh1 {[%clk 00:53:08]} {[%emt 00:04:14]} Qf6 {[%clk 00:22:46]} {[%emt
00:05:06]} 22. Rae1 {[%clk 00:47:50]} {[%emt 00:05:48]} a5 {[%clk 00:17:24]}
{[%emt 00:05:52]} 23. a3 {[%clk 00:42:26]} {[%emt 00:05:54]} axb4 {[%clk
00:15:59]} {[%emt 00:01:54]} 24. axb4 {[%clk 00:40:47]} {[%emt 00:02:09]} Rb8
{[%clk 00:11:16]} {[%emt 00:05:14]} 25. f4 {[%clk 00:24:27]} {[%emt 00:16:50]}
Bh6 {[%clk 00:07:54]} {[%emt 00:03:52]} 26. fxe5 {[%clk 00:20:43]} {[%emt
00:04:15]} Nxe5 {[%clk 00:07:52]} {[%emt 00:00:31]} 27. Bd4 {[%clk 00:18:40]}
{[%emt 00:02:32]} g6 {[%clk 00:06:35]} {[%emt 00:01:48]} 28. Nb5 {[%clk
00:16:50]} {[%emt 00:02:20]} Re8 {[%clk 00:04:25]} {[%emt 00:02:39]} 29. Qc3
{[%clk 00:10:21]} {[%emt 00:06:59]} Bg7 {[%clk 00:04:06]} {[%emt 00:00:50]} 30.
Bxe5 {[%clk 00:08:06]} {[%emt 00:02:46]} Rxe5 {[%clk 00:03:49]} {[%emt
00:00:47]} 31. Qa3 {[%clk 00:07:17]} {[%emt 00:01:19]} Qe7 {[%clk 00:02:10]}
{[%emt 00:02:09]} 32. Rxe5 {[%clk 00:06:52]} {[%emt 00:00:55]} Bxe5 {[%clk
00:02:28]} {[%emt 00:00:11]} 33. Re1 {[%clk 00:06:21]} {[%emt 00:01:00]} Bb7
{[%clk 00:01:04]} {[%emt 00:01:55]} 34. Qc1 {[%clk 00:03:22]} {[%emt 00:03:28]}
Kg7 {[%clk 00:00:57]} {[%emt 00:00:38]} 35. Qe3 {[%clk 00:03:32]} {[%emt
00:00:20]} Re8 {[%clk 00:00:42]} {[%emt 00:00:45]} 36. Qxb6 {[%clk 00:02:58]}
{[%emt 00:01:04]} Bc8 {[%clk 00:00:39]} {[%emt 00:00:33]} 37. Nxd6 {[%clk
00:02:34]} {[%emt 00:00:55]} Rd8 {[%clk 00:00:40]} {[%emt 00:00:28]} 38. Nxc8
{[%clk 00:01:47]} {[%emt 00:01:17]} Rxc8 {[%clk 00:01:05]} {[%emt 00:00:06]} 39.
Qe3 {[%clk 00:01:17]} {[%emt 00:00:59]} Kf6 {[%clk 00:01:06]} {[%emt 00:00:28]}
40. c5 {[%clk 00:16:10]} {[%emt 00:00:37]} Ra8 {[%clk 00:16:02]} {[%emt
00:00:34]} 41. h4 {[%clk 00:15:35]} {[%emt 00:01:05]} Ra1 {[%clk 00:13:17]}
{[%emt 00:03:16]} 42. Bb1 {[%clk 00:13:34]} {[%emt 00:02:30]} Ra7 {[%clk
00:12:14]} {[%emt 00:01:33]} 43. Qg5+ {[%clk 00:11:57]} {[%emt 00:02:06]} Kf7
{[%clk 00:12:30]} {[%emt 00:00:14]} 44. Qxe7+ {[%clk 00:10:36]} {[%emt
00:01:51]} Rxe7 {[%clk 00:12:53]} {[%emt 00:00:07]} 45. Ba2 {[%clk 00:09:41]}
{[%emt 00:01:25]} 1-0

[Event "Estonian Women's Chess Championship 2021"]
[Site "Tallinn, Paul Keres Chess House, Estonia"]
[Date "2021.12.11"]
[Round "1.3"]
[White "Sinitsina, Anastassia"]
[Black "Ivanova, Lidia"]
[Result "1-0"]
[TimeControl "90 minutes for first 40 moves and 15 min. for the rest of the game with 30 sec."]
[WhiteTitle "WFM"]
[WhiteFideId "4504640"]
[BlackFideId "4506480"]
[WhiteElo "2159"]
[BlackElo "1443"]

1. Nf3 {[%clk 01:30:55]} {[%emt 00:00:04]} d5 {[%clk 01:30:51]} {[%emt
00:00:10]} 2. g3 {[%clk 01:31:16]} {[%emt 00:00:10]} Nf6 {[%clk 01:31:12]}
{[%emt 00:00:08]} 3. Bg2 {[%clk 01:31:28]} {[%emt 00:00:18]} c6 {[%clk
01:31:27]} {[%emt 00:00:14]} 4. O-O {[%clk 01:31:46]} {[%emt 00:00:12]} Bg4
{[%clk 01:31:43]} {[%emt 00:00:14]} 5. d3 {[%clk 01:32:05]} {[%emt 00:00:11]}
e6 {[%clk 01:32:03]} {[%emt 00:00:10]} 6. Nbd2 {[%clk 01:32:18]} {[%emt
00:00:16]} Be7 {[%clk 01:32:24]} {[%emt 00:00:09]} 7. e4 {[%clk 01:31:52]}
{[%emt 00:00:56]} dxe4 {[%clk 01:32:28]} {[%emt 00:00:26]} 8. dxe4 {[%clk
01:32:05]} {[%emt 00:00:18]} O-O {[%clk 01:32:40]} {[%emt 00:00:17]} 9. Qe2
{[%clk 01:30:30]} {[%emt 00:02:05]} Nbd7 {[%clk 01:32:36]} {[%emt 00:00:33]} 10.
h3 {[%clk 01:28:12]} {[%emt 00:02:48]} Bh5 {[%clk 01:31:37]} {[%emt 00:01:29]}
11. b3 {[%clk 01:27:14]} {[%emt 00:01:29]} Bb4 {[%clk 01:16:32]} {[%emt
00:15:36]} 12. Rd1 {[%clk 01:14:32]} {[%emt 00:13:12]} Bc3 {[%clk 01:16:18]}
{[%emt 00:00:43]} 13. Rb1 {[%clk 01:14:59]} {[%emt 00:00:04]} Qa5 {[%clk
01:15:03]} {[%emt 00:01:45]} 14. Nc4 {[%clk 01:10:22]} {[%emt 00:05:07]} Qc7
{[%clk 01:11:12]} {[%emt 00:04:20]} 15. Ba3 {[%clk 01:07:22]} {[%emt 00:03:31]}
c5 {[%clk 01:09:24]} {[%emt 00:02:18]} 16. Rd3 {[%clk 01:00:18]} {[%emt
00:07:34]} Bb4 {[%clk 00:42:53]} {[%emt 00:27:00]} 17. Bb2 {[%clk 00:54:33]}
{[%emt 00:06:14]} b5 {[%clk 00:40:16]} {[%emt 00:03:07]} 18. Ne3 {[%clk
00:53:14]} {[%emt 00:01:49]} Bg6 {[%clk 00:33:22]} {[%emt 00:07:25]} 19. Nh4
{[%clk 00:51:00]} {[%emt 00:02:44]} Rab8 {[%clk 00:18:47]} {[%emt 00:15:05]} 20.
Nxg6 {[%clk 00:45:30]} {[%emt 00:06:00]} hxg6 {[%clk 00:19:15]} {[%emt
00:00:02]} 21. c4 {[%clk 00:44:13]} {[%emt 00:01:47]} a6 {[%clk 00:17:35]}
{[%emt 00:02:10]} 22. f4 {[%clk 00:43:21]} {[%emt 00:01:22]} e5 {[%clk
00:16:54]} {[%emt 00:01:12]} 23. Qf2 {[%clk 00:37:11]} {[%emt 00:06:40]} exf4
{[%clk 00:15:29]} {[%emt 00:01:54]} 24. gxf4 {[%clk 00:37:28]} {[%emt
00:00:12]} Nh5 {[%clk 00:13:33]} {[%emt 00:02:26]} 25. Rbd1 {[%clk 00:37:13]}
{[%emt 00:00:45]} Rbd8 {[%clk 00:12:47]} {[%emt 00:01:16]} 26. Nd5 {[%clk
00:37:34]} {[%emt 00:00:09]} bxc4 {[%clk 00:12:47]} {[%emt 00:00:31]} 27. Nxc7
{[%clk 00:37:29]} {[%emt 00:00:35]} 1-0

[Event "Estonian Women's Chess Championship 2021"]
[Site "Tallinn, Paul Keres Chess House, Estonia"]
[Date "2021.12.11"]
[Round "1.4"]
[White "Haapsal, Maria Ioanna"]
[Black "Narva, Triin"]
[Result "0-1"]
[TimeControl "90 minutes for first 40 moves and 15 min. for the rest of the game with 30 sec."]
[BlackTitle "WFM"]
[WhiteFideId "4512286"]
[BlackFideId "4502680"]
[WhiteElo "1441"]
[BlackElo "2112"]

1. e4 {[%emt 01:47:46]} d5 {[%emt 00:00:08]} 2. exd5 {[%emt 00:00:10]} Qxd5
{[%emt 00:00:05]} 3. Nc3 {[%emt 00:00:15]} Qd6 {[%emt 00:00:08]} 4. d4 {[%emt
00:00:15]} Nf6 {[%emt 00:00:18]} 5. g3 {[%emt 00:03:47]} Bg4 {[%emt 00:01:32]}
6. f3 {[%emt 00:03:38]} Bf5 {[%emt 00:06:19]} 7. Nge2 {[%emt 00:09:00]} e6
{[%emt 00:04:02]} 8. Bg2 {[%emt 00:04:22]} Nc6 {[%emt 00:04:51]} 9. a3 {[%emt
00:04:08]} O-O-O {[%emt 00:05:58]} 10. Be3 {[%emt 00:05:14]} e5 {[%emt
00:13:25]} 11. dxe5 {[%emt 00:07:07]} Qxe5 {[%emt 00:01:03]} 12. Qc1 {[%emt
00:09:12]} Bc5 {[%emt 00:04:55]} 13. Bxc5 {[%emt 00:04:34]} Qxc5 {[%emt
00:00:08]} 14. g4 {[%emt 00:05:24]} Bg6 {[%emt 00:02:08]} 15. g5 {[%emt
00:07:45]} Nd5 {[%emt 00:06:15]} 16. b4 {[%emt 00:09:44]} Qc4 {[%emt 00:04:14]}
17. Nxd5 {[%emt 00:01:30]} Rxd5 {[%emt 00:00:16]} 18. f4 {[%emt 00:01:50]} Nd4
{[%emt 00:01:17]} 19. Bh3+ {[%emt 00:08:03]} Kb8 {[%emt 00:00:23]} 20. Bg4
{[%emt 00:01:20]} Re8 {[%emt 00:03:02]} 21. Qd1 {[%emt 00:05:40]} Nxc2+ {[%emt
00:01:00]} 22. Kf2 {[%emt 00:00:32]} Rxd1 {[%emt 00:00:53]} 23. Raxd1 {[%emt
00:00:22]} Ne3 {[%emt 00:00:24]} 24. Rhe1 {[%emt 00:01:40]} Nxg4+ {[%emt
00:00:10]} 25. Kg1 {[%emt 00:00:27]} Qe4 {[%emt 00:04:13]} 26. Ng3 {[%emt
00:01:54]} Qxe1+ {[%emt 00:00:07]} 27. Rxe1 {[%emt 00:00:05]} Rxe1+ {[%emt
00:00:05]} 28. Kg2 {[%emt 00:00:37]} Ra1 {[%emt 00:00:30]} 29. h3 {[%emt
00:00:19]} Ne3+ {[%emt 00:00:09]} 30. Kf2 {[%emt 00:00:09]} Rxa3 {[%emt
00:00:15]} 31. h4 {[%emt 00:00:09]} Nf5 {[%emt 00:00:10]} 32. Nxf5 {[%emt
00:00:18]} Bxf5 {[%emt 00:00:04]} 33. h5 {[%emt 00:00:09]} Rb3 {[%emt
00:00:30]} 34. h6 {[%emt 00:00:15]} g6 {[%emt 00:00:07]} 35. Ke2 {[%emt
00:00:07]} Rxb4 {[%emt 00:00:06]} 36. Ke3 {[%emt 00:00:08]} a5 {[%emt
00:00:06]} 37. Kd2 {[%emt 00:00:09]} Rb3 {[%emt 00:00:14]} 38. Kc1 {[%emt
00:00:11]} a4 {[%emt 00:00:05]} 39. Kd2 {[%emt 00:00:11]} a3 {[%emt 00:00:07]}
40. Kc1 {[%emt 00:00:04]} Rb2 {[%emt 00:00:15]} 41. Kd1 {[%emt 00:00:09]} a2
{[%emt 00:00:05]} 42. Kc1 {[%emt 00:00:04]} a1=Q# {[%emt 00:00:05]} 0-1

[Event "Estonian Women's Chess Championship 2021"]
[Site "Tallinn, Paul Keres Chess House, Estonia"]
[Date "2021.12.12"]
[Round "2.1"]
[White "Barkasheva, Sofia"]
[Black "Narva, Triin"]
[Result "0-1"]
[TimeControl "90 minutes for first 40 moves and 15 min. for the rest of the game with 30 sec."]
[BlackTitle "WFM"]
[WhiteFideId "4510615"]
[BlackFideId "4502680"]
[WhiteElo "1505"]
[BlackElo "2112"]

1. e4 {[%clk 01:30:56]} {[%emt 00:00:04]} d5 {[%clk 01:30:20]} {[%emt
00:00:40]} 2. exd5 {[%clk 01:31:20]} {[%emt 00:00:07]} Qxd5 {[%clk 01:30:44]}
{[%emt 00:00:07]} 3. Nc3 {[%clk 01:31:38]} {[%emt 00:00:11]} Qd6 {[%clk
01:31:02]} {[%emt 00:00:11]} 4. d4 {[%clk 01:31:56]} {[%emt 00:00:11]} Nf6
{[%clk 01:31:20]} {[%emt 00:00:13]} 5. Nf3 {[%clk 01:32:13]} {[%emt 00:00:13]}
a6 {[%clk 01:31:45]} {[%emt 00:00:06]} 6. g3 {[%clk 01:32:26]} {[%emt
00:00:16]} Bg4 {[%clk 01:32:00]} {[%emt 00:00:15]} 7. h3 {[%clk 01:32:33]}
{[%emt 00:00:23]} Bxf3 {[%clk 01:27:55]} {[%emt 00:04:35]} 8. Qxf3 {[%clk
01:32:50]} {[%emt 00:00:13]} Nc6 {[%clk 01:26:51]} {[%emt 00:01:34]} 9. Be3
{[%clk 01:24:50]} {[%emt 00:08:30]} e6 {[%clk 01:03:53]} {[%emt 00:23:29]} 10.
Bg2 {[%clk 01:12:53]} {[%emt 00:12:26]} Qb4 {[%clk 00:53:48]} {[%emt 00:10:35]}
11. O-O-O {[%clk 00:58:20]} {[%emt 00:15:04]} Be7 {[%clk 00:40:39]} {[%emt
00:13:39]} 12. g4 {[%clk 00:48:45]} {[%emt 00:10:05]} Rd8 {[%clk 00:30:18]}
{[%emt 00:10:52]} 13. Qg3 {[%clk 00:32:31]} {[%emt 00:16:42]} Qa5 {[%clk
00:28:11]} {[%emt 00:02:37]} 14. g5 {[%clk 00:20:13]} {[%emt 00:12:48]} Nd5
{[%clk 00:25:08]} {[%emt 00:03:33]} 15. Nxd5 {[%clk 00:17:47]} {[%emt
00:02:56]} exd5 {[%clk 00:25:28]} {[%emt 00:00:11]} 16. Kb1 {[%clk 00:15:28]}
{[%emt 00:02:49]} O-O {[%clk 00:19:08]} {[%emt 00:06:50]} 17. f4 {[%clk
00:11:10]} {[%emt 00:04:48]} Qa4 {[%clk 00:17:30]} {[%emt 00:02:08]} 18. c3
{[%clk 00:09:26]} {[%emt 00:02:13]} b5 {[%clk 00:13:17]} {[%emt 00:04:43]} 19.
b3 {[%clk 00:07:47]} {[%emt 00:02:09]} Qa3 {[%clk 00:11:50]} {[%emt 00:01:57]}
20. Bc1 {[%clk 00:07:42]} {[%emt 00:00:35]} Qd6 {[%clk 00:11:14]} {[%emt
00:01:07]} 21. h4 {[%clk 00:06:13]} {[%emt 00:02:00]} b4 {[%clk 00:10:48]}
{[%emt 00:00:56]} 22. h5 {[%clk 00:06:08]} {[%emt 00:00:35]} bxc3 {[%clk
00:10:14]} {[%emt 00:01:05]} 23. Qxc3 {[%clk 00:06:09]} {[%emt 00:00:29]} f5
{[%clk 00:08:20]} {[%emt 00:02:23]} 24. Rhe1 {[%clk 00:05:37]} {[%emt
00:01:00]} Rb8 {[%clk 00:07:48]} {[%emt 00:01:04]} 25. Qf3 {[%clk 00:05:17]}
{[%emt 00:00:49]} Rfd8 {[%clk 00:07:15]} {[%emt 00:01:04]} 26. Bh3 {[%clk
00:05:08]} {[%emt 00:00:40]} Qd7 {[%clk 00:04:34]} {[%emt 00:03:12]} 27. Qd3
{[%clk 00:05:08]} {[%emt 00:00:29]} Rf8 {[%clk 00:03:47]} {[%emt 00:01:17]} 28.
Qe2 {[%clk 00:03:46]} {[%emt 00:01:52]} Bd6 {[%clk 00:01:31]} {[%emt 00:02:47]}
29. Bg2 {[%clk 00:02:51]} {[%emt 00:01:24]} Rb5 {[%clk 00:01:35]} {[%emt
00:00:27]} 30. Qe6+ {[%clk 00:02:16]} {[%emt 00:01:04]} Qxe6 {[%clk 00:01:46]}
{[%emt 00:00:20]} 31. Rxe6 {[%clk 00:02:44]} {[%emt 00:00:02]} Kf7 {[%clk
00:02:02]} {[%emt 00:00:13]} 32. Re2 {[%clk 00:02:08]} {[%emt 00:01:05]} Rfb8
{[%clk 00:01:24]} {[%emt 00:01:10]} 33. Bh3 {[%clk 00:01:47]} {[%emt 00:00:50]}
g6 {[%clk 00:01:07]} {[%emt 00:00:47]} 34. Rc2 {[%clk 00:01:24]} {[%emt
00:00:52]} Nb4 {[%clk 00:00:36]} {[%emt 00:01:03]} 35. Rh2 {[%clk 00:01:08]}
{[%emt 00:00:45]} Re8 {[%clk 00:00:35]} {[%emt 00:00:32]} 36. hxg6+ {[%clk
00:01:19]} {[%emt 00:00:20]} hxg6 {[%clk 00:00:33]} {[%emt 00:00:32]} 37. Bf1
{[%clk 00:01:28]} {[%emt 00:00:20]} Rb6 {[%clk 00:00:42]} {[%emt 00:00:22]} 38.
Rh7+ {[%clk 00:01:47]} {[%emt 00:00:10]} Kg8 {[%clk 00:01:03]} {[%emt
00:00:09]} 39. Rh6 {[%clk 00:01:38]} {[%emt 00:00:39]} Bf8 {[%clk 00:01:26]}
{[%emt 00:00:07]} 40. Rh2 {[%clk 00:16:34]} {[%emt 00:00:34]} Bg7 {[%clk
00:16:32]} {[%emt 00:00:24]} 41. Re2 {[%clk 00:06:43]} {[%emt 00:10:19]} Rxe2
{[%clk 00:07:16]} {[%emt 00:09:47]} 42. Bxe2 {[%clk 00:07:08]} {[%emt
00:00:05]} a5 {[%clk 00:07:37]} {[%emt 00:00:10]} 43. Bf3 {[%clk 00:06:14]}
{[%emt 00:01:23]} c6 {[%clk 00:06:55]} {[%emt 00:01:12]} 44. a3 {[%clk
00:06:06]} {[%emt 00:00:38]} Na6 {[%clk 00:07:13]} {[%emt 00:00:12]} 45. Kc2
{[%clk 00:05:40]} {[%emt 00:00:56]} Nc7 {[%clk 00:06:45]} {[%emt 00:00:58]} 46.
Be3 {[%clk 00:04:15]} {[%emt 00:01:55]} Ne6 {[%clk 00:05:06]} {[%emt 00:02:09]}
47. Kc3 {[%clk 00:03:48]} {[%emt 00:00:57]} Bf8 {[%clk 00:05:07]} {[%emt
00:00:30]} 48. Kb2 {[%clk 00:03:26]} {[%emt 00:00:52]} Bd6 {[%clk 00:04:42]}
{[%emt 00:00:55]} 49. Rc1 {[%clk 00:02:36]} {[%emt 00:01:19]} Bxf4 {[%clk
00:04:26]} {[%emt 00:00:47]} 50. Bxf4 {[%clk 00:02:56]} {[%emt 00:00:10]} Nxf4
{[%clk 00:04:52]} {[%emt 00:00:04]} 51. Rh1 {[%clk 00:02:35]} {[%emt 00:00:50]}
Ne6 {[%clk 00:05:01]} {[%emt 00:00:21]} 52. Rh6 {[%clk 00:02:32]} {[%emt
00:00:32]} Kg7 {[%clk 00:03:53]} {[%emt 00:01:39]} 53. Kc3 {[%clk 00:02:47]}
{[%emt 00:00:15]} Nxg5 {[%clk 00:04:16]} {[%emt 00:00:07]} 54. Rh1 {[%clk
00:03:04]} {[%emt 00:00:13]} Nxf3 {[%clk 00:04:42]} {[%emt 00:00:05]} 55. Rh3
{[%clk 00:02:39]} {[%emt 00:00:52]} Ng5 {[%clk 00:05:07]} {[%emt 00:00:08]} 56.
Re3 {[%clk 00:02:59]} {[%emt 00:00:10]} Ne4+ {[%clk 00:05:33]} {[%emt
00:00:04]} 57. Kc2 {[%clk 00:03:23]} {[%emt 00:00:06]} f4 {[%clk 00:05:56]}
{[%emt 00:00:07]} 58. Rf3 {[%clk 00:03:41]} {[%emt 00:00:11]} g5 {[%clk
00:06:21]} {[%emt 00:00:06]} 59. Rh3 {[%clk 00:03:59]} {[%emt 00:00:11]} Kg6
{[%clk 00:06:18]} {[%emt 00:00:34]} 60. Rh8 {[%clk 00:04:08]} {[%emt 00:00:21]}
f3 {[%clk 00:06:23]} {[%emt 00:00:26]} 61. Rh1 {[%clk 00:04:11]} {[%emt
00:00:26]} f2 {[%clk 00:06:39]} {[%emt 00:00:15]} 62. Rf1 {[%clk 00:04:21]}
{[%emt 00:00:20]} g4 {[%clk 00:06:52]} {[%emt 00:00:17]} 0-1